bitfinex-derivatives/quotes_SOLF0:USTF0_20251208
["timestamp","ask_amount","ask_price","bid_price","bid_amount"]
[1765174760022,12.05723589,134.92,134.85,3.24]
[1765174760231,3.37,134.91,134.88,3.24]
[1765174761118,3.42344156,134.91,134.88,3.28793114]
[1765174762031,3.42344156,134.91,134.88,0.04793114]
[1765174762032,3.37,134.9,134.88,0.04793114]
[1765174770135,0.05344156,134.91,134.88,3.28793114]
[1765174770337,3.42344156,134.91,134.88,3.28793114]
[1765174771740,0.05344156,134.91,134.89,3.24]
[1765174773437,0.05344156,134.91,134.89,9.9121]
[1765174773645,0.05344156,134.91,134.9,3.24]
[1765174779041,3.42344156,134.91,134.89,2.43666865]
[1765174779339,3.37,134.9,134.88,0.04793114]
[1765174781149,3.42344156,134.91,134.88,3.28793114]
[1765174783151,3.42344156,134.91,134.88,0.04793114]
[1765174794761,10.09464156,134.91,134.88,0.04793114]
[1765174794964,3.1,134.9,134.88,0.04793114]
[1765174795266,0.05344156,134.91,134.88,3.11793114]
[1765174795570,3.15344156,134.91,134.88,3.11793114]
[1765174796168,3.15344156,134.91,134.88,0.04793114]
[1765174797671,3.1,134.9,134.88,0.04793114]
[1765174799260,3.1,134.9,134.88,3.11793114]
[1765174800275,0.05344156,134.91,134.89,3.07]
[1765174801564,0.05344156,134.91,134.9,3.07]
[1765174806977,3.25344156,134.91,134.89,9.8421]
[1765174807476,0.05344156,134.91,134.9,3.17]
[1765174810782,3.2,134.96,134.9,3.17]
[1765174810988,3.2,134.94,134.9,3.17]
[1765174811787,0.05180258,134.93,134.91,3.22220352]
[1765174814381,0.05180258,134.93,134.92,3.17]
[1765174814889,0.05180258,134.93,134.92,6.97706363]
[1765174815081,3.2,134.96,134.93,3.17]
[1765174816191,3.2495399,134.96,134.93,3.17]
[1765174817281,3.2495399,134.96,134.91,3.22220352]
[1765174819077,3.13,134.95,134.91,3.22220352]
[1765174819390,3.13,134.95,134.92,3.14]
[1765174820292,3.13,134.95,134.91,3.19220352]
[1765174821488,3.13,134.94,134.91,0.05220352]
[1765174822081,9.8,134.94,134.91,0.05220352]
[1765174822291,3.13,134.93,134.91,0.05220352]
[1765174824395,3.13,134.93,134.91,3.19220352]
[1765174825095,3.13,134.95,134.91,3.19220352]
[1765174826586,3.13,134.95,134.92,3.14]
[1765174826783,0.0495399,134.96,134.92,3.14]
[1765174826995,3.1795399,134.96,134.92,3.14]
[1765174827796,3.1795399,134.96,134.91,6.99926715]
[1765174827989,3.1795399,134.96,134.91,3.19220352]
[1765174828696,3.13,134.94,134.91,0.05220352]
[1765174829197,3.13,134.92,134.91,0.05220352]
[1765174829602,3.13,134.92,134.87,63.28]
[1765174830202,3.13,134.92,134.87,66.42]
[1765174830509,3.13,134.91,134.88,0.0506792]
[1765174831293,3.13,134.9,134.88,0.0506792]
[1765174832187,9.8019,134.9,134.88,0.0506792]
[1765174832388,3.13,134.89,134.88,0.0506792]
[1765174834199,3.18055474,134.9,134.88,0.0506792]
[1765174838402,9.85235474,134.9,134.88,0.0506792]
[1765174838605,3.13,134.89,134.88,0.0506792]
[1765174843196,3.13,134.88,134.85,3.14]
[1765174844214,3.13,134.88,134.85,3.19375425]
[1765174844797,9.8028,134.88,134.86,3.14]
[1765174846606,3.13,134.87,134.85,2.49107614]
[1765174846812,3.13,134.86,134.85,2.49107614]
[1765174847012,9.85081363,134.87,134.85,5.63107614]
[1765174849007,3.17761363,134.87,134.85,5.63107614]
[1765174853516,3.25,134.86,134.85,2.49107614]
[1765174856921,6.72081363,134.87,134.85,5.82107614]
[1765174857124,3.29761363,134.87,134.85,5.82107614]
[1765174857316,3.29761363,134.87,134.85,2.49107614]
[1765174857516,3.29761363,134.87,134.85,5.82107614]
[1765174863524,0.04761363,134.87,134.86,3.2]
[1765174864629,0.04761363,134.87,134.85,0.05375425]
[1765174864630,3.13761363,134.87,134.85,0.05375425]
[1765174865626,9.81091363,134.87,134.85,0.05375425]
[1765174866632,3.09,134.86,134.85,0.05375425]
[1765174870928,9.81091363,134.87,134.85,3.25375425]
[1765174874434,3.09,134.86,134.85,3.25375425]
[1765174879542,3.09,134.86,134.85,0.05375425]
[1765174886546,0.04761363,134.87,134.85,3.23375425]
[1765174887147,3.16761363,134.87,134.85,3.23375425]
[1765174887547,3.16761363,134.87,134.85,0.05375425]
[1765174898263,9.84091363,134.87,134.85,0.05375425]
[1765174898566,3.12,134.86,134.85,0.05375425]
[1765174922981,6.72091363,134.87,134.85,3.23375425]
[1765174923185,3.34,134.86,134.85,0.05375425]
[1765174929082,3.34,134.85,134.8,13.66549706]
[1765174929779,3.34,134.82,134.79,3.18]
[1765174929988,3.39314314,134.82,134.79,3.23643576]
[1765174930890,3.39314314,134.82,134.8,3.18]
[1765174952609,3.39314314,134.82,134.79,3.34]
[1765174952809,3.39314314,134.82,134.77,23.8869239]
[1765174952810,3.39314314,134.82,134.78,3.34]
[1765174953603,3.33,134.8,134.78,3.34]
[1765174953802,3.33,134.8,134.79,0.0545454]
[1765174959112,3.33,134.8,134.75,3.34]
[1765174960106,3.33,134.78,134.76,0.04692817]
[1765174961322,3.33,134.77,134.76,0.04692817]
[1765174964729,6.678,134.78,134.76,3.38692817]
[1765174964730,3.33,134.78,134.76,3.38692817]
[1765174966730,3.33,134.78,134.77,2.44038189]
[1765174967030,3.33,134.78,134.76,0.04692817]
[1765174967630,3.33,134.75,134.73,65.74038189]
[1765174968739,3.3841966,134.75,134.73,65.79425531]
[1765174973239,3.2,134.74,134.73,65.79425531]
[1765174973540,3.2,134.74,134.73,2.49425531]
[1765174974034,3.2,134.74,134.73,0.05387342]
[1765174976338,3.2,134.73,134.71,2.44038189]
[1765174977236,3.2,134.73,134.71,2.47203788]
[1765174978440,9.8803,134.73,134.71,0.03165599]
[1765174978735,2.44038189,134.74,134.69,3.15]
[1765174978736,3.14,134.72,134.69,3.15]
[1765174979739,3.19384408,134.72,134.69,3.15]
[1765174980540,3.14,134.71,134.69,3.15]
[1765174980929,0.05384408,134.72,134.71,3.16]
[1765174983344,9.819,134.76,134.71,3.16]
[1765174983640,6.679,134.76,134.75,5.60038189]
[1765174983845,9.819,134.76,134.75,2.44038189]
[1765174984736,0.04983571,134.77,134.75,5.60038189]
[1765174984944,3.18983571,134.77,134.75,5.60038189]
[1765174986049,9.86803571,134.77,134.75,5.60038189]
[1765174987350,3.18983571,134.77,134.75,5.60038189]
[1765174990143,3.18983571,134.77,134.76,3.16]
[1765174990348,0.04983571,134.77,134.76,3.16]
[1765174990649,3.18983571,134.77,134.75,5.60038189]
[1765174991344,3.18983571,134.77,134.75,2.44038189]
[1765174991948,3.18983571,134.77,134.75,5.60038189]
[1765174993747,3.18983571,134.77,134.75,2.44038189]
[1765174994552,3.18983571,134.77,134.75,5.60038189]
[1765174996253,0.04983571,134.77,134.76,3.16]
[1765174996850,0.04983571,134.77,134.75,5.60038189]
[1765174996851,3.18983571,134.77,134.75,5.60038189]
[1765174997251,0.04983571,134.77,134.76,3.16]
[1765174998560,3.16983571,134.77,134.76,3.16]
[1765174999050,3.16983571,134.77,134.75,2.44038189]
[1765174999258,3.16983571,134.77,134.75,5.50038189]
[1765174999761,3.16983571,134.77,134.75,3.06]
[1765175002157,0.04983571,134.77,134.75,3.06]
[1765175003665,3.16983571,134.77,134.75,3.06]
[1765175004762,0.04983571,134.77,134.75,3.06]
[1765175005059,0.04983571,134.77,134.76,5.50038189]
[1765175011365,3.16983571,134.77,134.76,2.44038189]
[1765175011561,3.16983571,134.77,134.74,68.87074226]
[1765175011760,3.16983571,134.77,134.75,3.06]
[1765175025690,3.16983571,134.77,134.74,73.10976037]
[1765175026102,3.16983571,134.77,134.75,3.06]
[1765175028891,3.16983571,134.77,134.74,70.04976037]
[1765175028892,3.16983571,134.77,134.74,0.05036037]
[1765175029398,9.84813571,134.77,134.74,0.05036037]
[1765175029602,3.23,134.75,134.74,0.05036037]
[1765175029803,8.72752598,134.75,134.74,0.05036037]
[1765175030391,3.23,134.74,134.68,6.6824]
[1765175030591,3.23,134.73,134.69,3.12]
[1765175031193,3.23,134.75,134.7,3.12]
[1765175031502,0.05198194,134.74,134.71,66.42]
[1765175031702,0.05198194,134.74,134.72,3.12]
[1765175032497,0.05198194,134.74,134.72,9.8005]
[1765175032792,0.05198194,134.74,134.73,3.12]
[1765175034200,3.28198194,134.74,134.72,3.12]
[1765175034696,0.05198194,134.74,134.72,3.12]
[1765175038198,3.31198194,134.74,134.72,3.12]
[1765175041807,0.05198194,134.74,134.72,3.12]
[1765175042307,0.05198194,134.74,134.73,3.14]
[1765175049606,0.05198194,134.74,134.72,63.32]
[1765175049806,3.31198194,134.74,134.7,3.14]
[1765175050010,3.31198194,134.74,134.69,66.46]
[1765175050213,3.26,134.72,134.69,66.46]
[1765175057231,3.26,134.72,134.69,63.32]
[1765175058231,3.26,134.72,134.69,3.13]
[1765175062237,3.22,134.71,134.69,3.13]
[1765175064139,3.22,134.71,134.67,3.79373014]
[1765175064140,3.22,134.7,134.68,3.13]
[1765175064342,3.27231556,134.7,134.68,3.13]
[1765175064533,0.05231556,134.7,134.68,3.13]
[1765175066841,3.27231556,134.7,134.68,3.13]
[1765175067238,0.05231556,134.7,134.68,3.13]
[1765175068041,3.22,134.69,134.67,6.92373014]
[1765175068236,3.22,134.69,134.68,3.13]
[1765175068433,3.22,134.69,134.67,3.79373014]
[1765175068636,3.22,134.69,134.68,3.13]
[1765175070443,9.95401556,134.7,134.68,3.13]
[1765175073945,0.05231556,134.7,134.68,3.13]
[1765175074945,0.05231556,134.7,134.68,6.94463417]
[1765175075250,3.27231556,134.7,134.68,6.94463417]
[1765175076045,3.27231556,134.7,134.67,3.79373014]
[1765175076245,3.22,134.68,134.67,3.79373014]
[1765175076850,9.9021,134.69,134.67,6.92373014]
[1765175077060,0.05231556,134.7,134.67,6.92373014]
[1765175077061,3.27231556,134.7,134.67,6.92373014]
[1765175078452,9.95401556,134.7,134.67,6.92373014]
[1765175078657,3.22,134.69,134.67,6.92373014]
[1765175081255,9.95401556,134.7,134.68,3.13]
[1765175082148,0.05231556,134.7,134.68,6.94463417]
[1765175082359,0.05231556,134.7,134.69,3.13]
[1765175088766,0.05231556,134.7,134.69,5.57300365]
[1765175090866,3.31231556,134.7,134.68,5.67300365]
[1765175094766,0.05231556,134.7,134.69,3.23]
[1765175102066,3.27,134.75,134.73,3.3]
[1765175102266,5.50362952,134.74,134.73,3.3]
[1765175102468,6.679,134.76,134.73,3.3]
[1765175102664,8.77423124,134.75,134.73,3.3]
[1765175102871,3.27,134.75,134.73,3.3]
[1765175103172,3.32656176,134.75,134.73,3.35579928]
[1765175103483,3.32656176,134.75,134.73,0.05579928]
[1765175109174,10.00576176,134.75,134.73,0.05579928]
[1765175109579,3.27,134.74,134.73,0.05579928]
[1765175117589,3.27,134.72,134.68,3.3]
[1765175117788,3.27,134.7,134.68,3.3]
[1765175118687,3.3234431,134.7,134.68,3.3]
[1765175133008,3.3234431,134.7,134.67,3.79373014]
[1765175133208,3.3234431,134.7,134.67,7.10373014]
[1765175133800,3.3234431,134.7,134.68,3.31]
[1765175142124,10.0054431,134.7,134.68,3.31]
[1765175143718,0.0534431,134.7,134.69,5.75300365]
[1765175145727,0.0534431,134.7,134.69,69.09300365]
[1765175147424,3.1,134.74,134.7,3.31]
[1765175147725,3.1,134.74,134.72,5.75300365]
[1765175148426,3.15141575,134.74,134.72,5.80039998]
[1765175150823,3.15141575,134.74,134.72,3.35739633]
[1765175153732,0.05141575,134.74,134.72,3.35739633]
[1765175154124,3.12,134.78,134.73,3.27]
[1765175154328,3.12,134.77,134.75,3.27]
[1765175155332,3.17514567,134.77,134.75,3.31814005]
[1765175156132,0.05514567,134.77,134.75,3.31814005]
[1765175158533,0.05514567,134.77,134.76,7.08601402]
[1765175164335,3.3,134.82,134.77,3.06]
[1765175165132,3.3,134.86,134.8,3.06]
[1765175165331,3.35278697,134.84,134.82,0.05229459]
[1765175166035,3.35278697,134.84,134.82,3.11229459]
[1765175166339,0.05278697,134.84,134.82,3.11229459]
[1765175168147,3.35278697,134.84,134.82,0.05229459]
[1765175168841,6.72758697,134.84,134.82,0.05229459]
[1765175169046,3.3,134.83,134.82,0.05229459]
[1765175169447,3.3,134.82,134.78,66.38]
[1765175170446,3.3,134.81,134.79,0.05171063]
[1765175171858,3.3,134.83,134.8,3.06]
[1765175174953,6.6758,134.82,134.79,0.05171063]
[1765175175158,3.3,134.81,134.79,0.05171063]
[1765175175359,3.3,134.81,134.79,3.11171063]
[1765175175866,3.3,134.81,134.79,0.05171063]
[1765175176258,3.3,134.8,134.79,0.05171063]
[1765175181164,0.04922114,134.81,134.79,3.34171063]
[1765175181863,0.04922114,134.81,134.8,7.10601402]
[1765175184371,3.22,134.85,134.8,7.10601402]
[1765175184667,3.22,134.85,134.81,3.29]
[1765175185463,0.04689635,134.84,134.81,3.29]
[1765175188168,3.26689635,134.84,134.81,3.29]
[1765175188470,3.26689635,134.84,134.8,3.81601402]
[1765175188668,3.26689635,134.84,134.8,3.29]
[1765175190771,3.26689635,134.84,134.81,3.29]
[1765175190972,0.04689635,134.84,134.81,3.29]
[1765175191765,3.26689635,134.84,134.81,3.29]
[1765175197272,3.26689635,134.84,134.8,10.49251402]
[1765175197474,3.26689635,134.84,134.8,13.78251402]
[1765175198979,3.26689635,134.84,134.8,3.29]
[1765175201580,3.22,134.83,134.8,3.29]
[1765175209692,0.04689635,134.84,134.82,3.3]
[1765175213290,3.38689635,134.84,134.82,3.3]
[1765175217898,0.04689635,134.84,134.82,3.3]
[1765175221600,0.04689635,134.84,134.83,5.73872885]
[1765175224092,3.34,134.88,134.84,3.09]
[1765175224298,3.34,134.88,134.86,3.09]
[1765175225204,3.12,134.87,134.86,0.05530527]
[1765175226505,9.7933,134.87,134.86,0.05530527]
[1765175227504,3.12,134.87,134.86,0.05530527]
[1765175228601,5.61188615,134.88,134.86,3.14530527]
[1765175228803,3.1731573,134.88,134.86,3.14530527]
[1765175229199,3.1731573,134.88,134.86,0.05530527]
[1765175237115,3.1731573,134.88,134.86,3.14530527]
[1765175237713,3.1731573,134.88,134.86,0.05530527]
[1765175239113,3.1731573,134.88,134.86,3.22530527]
[1765175239615,3.1731573,134.88,134.86,0.05530527]
[1765175243112,0.0531573,134.88,134.86,3.22530527]
[1765175245914,3.2131573,134.88,134.86,3.22530527]
[1765175256126,0.0531573,134.88,134.86,3.22530527]
[1765175259726,3.2131573,134.88,134.86,3.22530527]
[1765175260031,3.16,134.87,134.86,0.05530527]
[1765175263133,3.16,134.87,134.81,5.60872885]
[1765175263324,3.16,134.85,134.81,5.60872885]
[1765175264126,0.04733049,134.84,134.82,0.05451467]
[1765175264334,3.16,134.83,134.82,0.05451467]
[1765175265236,3.20733049,134.84,134.82,3.22451467]
[1765175269643,3.20733049,134.84,134.82,0.05451467]
[1765175271141,3.20733049,134.84,134.82,3.38451467]
[1765175272649,3.20733049,134.84,134.82,0.05451467]
[1765175273250,3.20733049,134.84,134.82,3.38451467]
[1765175279853,0.04733049,134.84,134.83,3.33]
[1765175280750,3.38733049,134.84,134.82,10.05981467]
[1765175280951,3.38733049,134.84,134.83,3.33]
[1765175281148,3.38733049,134.84,134.82,6.72981467]
[1765175281346,3.38733049,134.84,134.82,10.05981467]
[1765175281551,3.38733049,134.84,134.83,3.33]
[1765175281751,0.04733049,134.84,134.83,3.33]
[1765175283267,3.24733049,134.84,134.83,3.33]
[1765175285058,0.04733049,134.84,134.83,3.33]
[1765175287462,3.24733049,134.84,134.83,3.33]
[1765175288164,0.04733049,134.84,134.83,3.33]
[1765175289558,3.24733049,134.84,134.83,3.33]
[1765175290751,0.04733049,134.84,134.83,3.33]
[1765175299173,3.2,134.88,134.85,3.34]
[1765175299375,3.2,134.88,134.86,3.34]
[1765175300165,3.25082559,134.88,134.86,3.39173724]
[1765175302571,0.05082559,134.88,134.86,10.06533724]
[1765175302781,0.05082559,134.88,134.87,3.34]
[1765175310477,3.32082559,134.88,134.86,0.05173724]
[1765175313491,3.27,134.87,134.86,0.05173724]
[1765175320198,0.05082559,134.88,134.86,3.39173724]
[1765175320497,0.05082559,134.88,134.87,3.34]
[1765175329097,3.18082559,134.88,134.86,3.11173724]
[1765175330094,0.05082559,134.88,134.86,3.11173724]
[1765175332007,0.05082559,134.88,134.87,3.06]
[1765175332703,0.05082559,134.88,134.87,5.49645877]
[1765175349619,115.67490415,134.95,134.87,5.49645877]
[1765175349620,6.6701,134.94,134.87,5.49645877]
[1765175349827,3.24,134.93,134.9,3.06]
[1765175350729,3.29363511,134.93,134.9,3.11520235]
[1765175356730,3.24,134.92,134.9,3.11520235]
[1765175367145,3.33363511,134.93,134.9,3.11520235]
[1765175371142,0.05363511,134.93,134.91,3.17]
[1765175373739,3.33363511,134.93,134.91,3.17]
[1765175374852,3.33363511,134.93,134.9,9.89670235]
[1765175376644,3.33363511,134.93,134.91,3.17]
[1765175380247,3.33363511,134.93,134.9,0.05520235]
[1765175380451,3.33363511,134.93,134.9,3.22520235]
[1765175386958,0.05363511,134.93,134.91,3.17]
[1765175387156,0.05363511,134.93,134.92,5.60645877]
[1765175392757,3.36363511,134.93,134.9,3.37520235]
[1765175401373,3.36363511,134.93,134.91,3.39]
[1765175401562,0.05363511,134.93,134.91,3.39]
[1765175403467,0.05363511,134.93,134.91,10.0611]
[1765175403769,0.05363511,134.93,134.92,3.39]
[1765175409378,3.31,134.97,134.94,3.39]
[1765175410371,3.35765583,134.97,134.94,3.44314949]
[1765175410567,0.04765583,134.97,134.95,3.39]
[1765175410876,3.35765583,134.97,134.95,3.39]
[1765175413079,0.04765583,134.97,134.95,3.39]
[1765175413780,3.35765583,134.97,134.95,3.39]
[1765175415282,3.35765583,134.97,134.94,3.44314949]
[1765175421077,3.14,134.95,134.94,0.05314949]
[1765175427587,3.14,134.95,134.94,3.39314949]
[1765175427793,3.18765583,134.97,134.94,3.39314949]
[1765175430183,3.18765583,134.97,134.95,3.34]
[1765175430492,0.04765583,134.97,134.95,3.34]
[1765175430695,0.04765583,134.97,134.96,3.34]
[1765175444401,9.8063,135.01,134.97,3.34]
[1765175444798,3.14,135.01,134.97,3.34]
[1765175445400,0.05124064,135.0,134.99,3.34]
[1765175445594,0.05010806,135.01,134.99,3.34]
[1765175450410,3.41010806,135.01,134.99,3.34]
[1765175452814,0.05010806,135.01,134.99,3.34]
[1765175453005,3.41010806,135.01,134.99,3.34]
[1765175458921,3.36,135.0,134.99,3.38]
[1765175459323,10.07640806,135.01,134.99,3.38]
[1765175461325,0.05010806,135.01,135.0,5.81271167]
[1765175461526,3.41010806,135.01,134.99,3.38]
[1765175463435,0.05010806,135.01,134.99,3.38]
[1765175463625,0.05010806,135.01,135.0,5.81271167]
[1765175463934,3.41010806,135.01,134.99,3.38]
[1765175464131,3.41010806,135.01,134.98,3.43192436]
[1765175467835,3.41010806,135.01,134.98,5.86463603]
[1765175468029,3.41010806,135.01,134.99,3.31]
[1765175469939,0.05010806,135.01,135.0,5.74271167]
[1765175478844,3.28,135.05,135.01,3.27]
[1765175479837,0.05247836,135.04,135.03,3.27]
[1765175481049,3.33247836,135.04,135.03,3.27]
[1765175482242,0.05247836,135.04,135.03,3.27]
[1765175483535,3.33247836,135.04,135.03,3.27]
[1765175483743,3.33247836,135.04,135.02,0.05135658]
[1765175484043,3.33247836,135.04,135.02,3.32135658]
[1765175494459,9.99737836,135.04,135.02,0.05135658]
[1765175496154,3.28,135.03,135.02,0.05135658]
[1765175496857,3.28,135.01,134.98,3.27]
[1765175497063,5.71271167,135.01,134.96,152.19854535]
[1765175497254,3.28,135.0,134.96,3.27]
[1765175497562,5.71271167,134.99,134.96,3.27]
[1765175497947,5.76175756,134.99,134.96,3.32611014]
[1765175498358,3.28,134.98,134.96,3.32611014]
[1765175499464,0.04904589,134.99,134.96,5.75882181]
[1765175499661,0.04904589,134.99,134.98,5.70271167]
[1765175500758,0.04904589,134.99,134.98,3.27]
[1765175503165,3.32904589,134.99,134.97,5.70271167]
[1765175504167,0.04904589,134.99,134.98,3.27]
[1765175505169,8.68824011,135.03,134.98,3.27]
[1765175505362,3.28,135.05,135.02,5.70271167]
[1765175506266,3.33399697,135.05,135.02,2.48701412]
[1765175506764,3.33399697,135.05,135.02,0.05430245]
[1765175506964,3.28,135.03,135.02,0.05430245]
[1765175507564,3.28,135.04,135.02,2.48701412]
[1765175508366,3.28,135.04,135.02,0.05430245]
[1765175508567,3.21,135.03,135.02,0.05430245]
[1765175513478,8.60955963,135.03,135.02,0.05430245]
[1765175514966,10.08955963,135.03,135.02,0.00430245]
[1765175516277,10.08745743,135.03,135.02,0.00430245]
[1765175521274,8.60745743,135.03,135.02,0.00430245]
[1765175522080,3.21,135.03,135.02,0.00430245]
[1765175523886,8.60901031,135.03,135.02,0.00430245]
[1765175534285,8.57901031,135.03,135.02,0.00430245]
[1765175538291,3.38399697,135.05,135.02,0.00430245]
[1765175538493,8.72878243,135.04,135.02,0.00430245]
[1765175538695,3.33,135.04,135.02,0.00430245]
[1765175540594,10.04829697,135.05,135.02,0.00430245]
[1765175541400,0.05399697,135.05,135.02,3.36430245]
[1765175541701,0.05399697,135.05,135.04,3.36]
[1765175550809,3.33,135.09,135.05,3.36]
[1765175551009,6.6621,135.1,135.05,3.36]
[1765175551311,9.9921,135.1,135.05,3.36]
[1765175551715,3.33,135.09,135.05,3.36]
[1765175551921,0.05654519,135.08,135.07,3.36]
[1765175552723,0.05654519,135.08,135.07,7.16200498]
[1765175555108,9.9914,135.11,135.07,7.16200498]
[1765175555313,3.33,135.11,135.08,3.36]
[1765175556320,3.38557736,135.11,135.08,3.36]
[1765175557723,10.04707736,135.11,135.08,3.36]
[1765175558527,3.33,135.1,135.08,3.36]
[1765175559525,10.04707736,135.11,135.08,3.36]
[1765175560222,3.33,135.1,135.08,3.36]
[1765175560826,10.04707736,135.11,135.08,3.36]
[1765175565735,3.33,135.1,135.08,3.36]
[1765175567834,3.06,135.09,135.07,3.23]
[1765175568033,3.06,135.09,135.06,3.28258734]
[1765175568225,3.06,135.09,135.06,0.05258734]
[1765175569231,3.06,135.08,135.06,0.05258734]
[1765175569737,3.06,135.07,135.06,0.05258734]
[1765175578638,5.49129326,135.07,135.06,0.05258734]
[1765175585447,0.04866563,135.08,135.06,3.11258734]
[1765175585650,0.04866563,135.08,135.07,3.06]
[1765175590352,3.27866563,135.08,135.02,3.06]
[1765175590548,3.23,135.04,135.0,3.06]
[1765175590750,3.23,135.02,135.0,3.06]
[1765175590942,3.23,135.02,134.99,3.06]
[1765175591443,3.28528081,135.02,134.99,3.11177505]
[1765175591645,0.05528081,135.02,135.01,5.49129326]
[1765175610366,0.05528081,135.02,135.01,3.06]
[1765175610569,3.27,135.01,134.99,0.05177505]
[1765175611449,9.9365,135.01,134.99,0.05177505]
[1765175611656,0.05528081,135.02,134.99,3.27177505]
[1765175612966,3.32528081,135.02,134.99,3.27177505]
[1765175615452,0.05528081,135.02,134.99,3.27177505]
[1765175615658,0.05528081,135.02,135.01,3.22]
[1765175618264,3.32528081,135.02,134.99,0.05177505]
[1765175618466,3.32528081,135.02,134.99,3.27177505]
[1765175619563,9.99108081,135.02,134.99,3.27177505]
[1765175621365,0.05528081,135.02,134.99,3.27177505]
[1765175621563,0.05528081,135.02,135.01,3.22]
[1765175627970,5.3460957,135.05,135.01,3.22]
[1765175628169,5.3460957,135.05,135.03,3.17]
[1765175628469,5.3460957,135.05,135.04,5.60129326]
[1765175632269,5.3460957,135.05,135.03,3.22328092]
[1765175632672,5.3460957,135.05,135.04,5.60129326]
[1765175633269,5.3460957,135.05,135.04,12.26609326]
[1765175634982,2.86366236,135.05,135.04,12.26609326]
[1765175638874,2.86366236,135.05,135.04,13.63122162]
[1765175639571,2.86366236,135.05,135.04,76.85122162]
[1765175640280,0.00366236,135.05,135.04,76.85122162]
[1765175640477,0.05069458,135.06,135.05,2.81]
[1765175642474,3.24,135.1,135.07,2.81]
[1765175642680,3.79642162,135.12,135.08,2.81]
[1765175642681,3.36,135.12,135.08,2.81]
[1765175643284,3.36,135.13,135.1,2.81]
[1765175643483,3.41210045,135.13,135.1,2.86512089]
[1765175643777,3.41210045,135.13,135.1,9.52682089]
[1765175645674,3.41210045,135.13,135.11,9.4709]
[1765175645675,0.05210045,135.13,135.11,9.4709]
[1765175645880,0.05210045,135.13,135.12,2.81]
[1765175646188,0.05210045,135.13,135.11,9.4709]
[1765175646789,0.05210045,135.13,135.12,2.81]
[1765175650689,3.41210045,135.13,135.1,2.86512089]
[1765175661399,3.41210045,135.13,135.1,0.05512089]
[1765175662008,6.6612,135.12,135.1,0.05512089]
[1765175662212,3.22,135.11,135.1,0.05512089]
[1765175665210,0.05210045,135.13,135.1,2.85512089]
[1765175665416,3.27210045,135.13,135.1,2.85512089]
[1765175665612,0.05210045,135.13,135.1,2.85512089]
[1765175666113,0.05210045,135.13,135.11,2.8]
[1765175667513,3.27210045,135.13,135.11,2.8]
[1765175667717,3.27210045,135.13,135.1,0.05512089]
[1765175668510,3.27210045,135.13,135.1,2.85512089]
[1765175670210,0.05210045,135.13,135.1,9.51662089]
[1765175670411,0.05210045,135.13,135.11,2.8]
[1765175671014,0.05210045,135.13,135.12,2.8]
[1765175671811,0.05210045,135.13,135.11,9.4613]
[1765175671812,3.27210045,135.13,135.11,9.4613]
[1765175672016,3.27210045,135.13,135.11,2.8]
[1765175673423,0.05210045,135.13,135.11,6.59642162]
[1765175673612,0.05210045,135.13,135.12,2.8]
[1765175674012,0.05210045,135.13,135.12,65.96]
[1765175674218,3.22,135.17,135.13,2.8]
[1765175674414,3.22,135.17,135.14,2.8]
[1765175675225,0.05118851,135.17,135.16,2.8]
[1765175675425,0.05118851,135.17,135.15,6.59642162]
[1765175675816,0.05118851,135.17,135.15,2.8]
[1765175676216,0.05118851,135.17,135.16,2.8]
[1765175678223,3.22,135.23,135.17,6.6582]
[1765175678521,3.22,135.23,135.19,2.75]
[1765175678719,3.22,135.23,135.18,69.72642162]
[1765175678922,3.22,135.22,135.18,69.72642162]
[1765175679426,3.27182806,135.21,135.19,0.05360411]
[1765175680425,3.22,135.19,135.12,53.32]
[1765175681128,3.22,135.17,135.12,56.13]
[1765175681330,3.22,135.15,135.13,0.05528859]
[1765175682120,3.27444659,135.16,135.13,2.86528859]
[1765175683525,3.27444659,135.16,135.13,0.05528859]